[Event "Titled Tuesday Blitz June 07 Late 2022"]
[White "Maltsevskaya, Aleksandra"]
[Black "Hansen, Eric"]
[WhiteFideId "24174041"]
[BlackFideId "2606771"]
[WhiteElo "2243"]
[BlackElo "2568"]
[Result "0-1"]
[Round "07"]
[TimeControl "180+1"]
[Date "2022.06.07"]
[WhiteClock "0:00:01"]
[BlackClock "0:00:09"]

1. e4 {[%clk 0:03:00]}  c5 {[%clk 0:02:41]} 2. Nf3 {[%clk 0:03:00]}  e6 {[%clk 0:02:41]} 3. d4 {[%clk 0:02:59]}  cxd4 {[%clk 0:02:40]} 4. Nxd4 {[%clk 0:03:00]}  a6 {[%clk 0:02:40]} 5. Bd3 {[%clk 0:02:59]}  Qb6 {[%clk 0:02:41]} 6. Nb3 {[%clk 0:02:59]}  Qc7 {[%clk 0:02:41]} 7. c4 {[%clk 0:02:47]}  d6 {[%clk 0:02:41]} 8. Nc3 {[%clk 0:02:47]}  Nf6 {[%clk 0:02:41]} 9. O-O {[%clk 0:02:47]}  b6 {[%clk 0:02:42]} 10. a4 {[%clk 0:02:45]}  Nbd7 {[%clk 0:02:41]} 11. a5 {[%clk 0:02:45]}  bxa5 {[%clk 0:02:42]} 12. Nxa5 {[%clk 0:02:45]}  Be7 {[%clk 0:02:43]} 13. Be3 {[%clk 0:02:42]}  Rb8 {[%clk 0:02:43]} 14. Qd2 {[%clk 0:02:31]}  Nc5 {[%clk 0:02:42]} 15. Rfb1 {[%clk 0:01:55]}  O-O {[%clk 0:02:37]} 16. Bc2 {[%clk 0:01:50]}  Ng4 {[%clk 0:02:27]} 17. Bf4 {[%clk 0:01:30]}  Ne5 {[%clk 0:02:20]} 18. b4 {[%clk 0:01:13]}  Ncd7 {[%clk 0:02:20]} 19. Bd3 {[%clk 0:01:11]}  Rd8 {[%clk 0:02:09]} 20. Bf1 {[%clk 0:01:10]}  h6 {[%clk 0:02:09]} 21. b5 {[%clk 0:01:08]}  Nc5 {[%clk 0:02:03]} 22. bxa6 {[%clk 0:00:57]}  Rxb1 {[%clk 0:02:02]} 23. Nxb1 {[%clk 0:00:51]}  Nxe4 {[%clk 0:01:45]} 24. Qd4 {[%clk 0:00:30]}  Nc5 {[%clk 0:01:44]} 25. a7 {[%clk 0:00:24]}  Qxa7 {[%clk 0:01:33]} 26. Bxe5 {[%clk 0:00:23]}  dxe5 {[%clk 0:01:24]} 27. Nc6 {[%clk 0:00:22]}  Qc7 {[%clk 0:01:03]} 28. Nxe7+ {[%clk 0:00:23]}  Kf8 {[%clk 0:00:44]} 29. Ra7 {[%clk 0:00:11]}  Qxe7 {[%clk 0:00:34]} 30. Rxe7 {[%clk 0:00:09]}  exd4 {[%clk 0:00:30]} 31. Rc7 {[%clk 0:00:09]}  Na6 {[%clk 0:00:23]} 32. Ra7 {[%clk 0:00:08]}  d3 {[%clk 0:00:19]} 33. Nd2 {[%clk 0:00:09]}  Nc5 {[%clk 0:00:11]} 34. f3 {[%clk 0:00:10]}  f5 {[%clk 0:00:11]} 35. Rc7 {[%clk 0:00:09]}  Na6 {[%clk 0:00:09]} 36. Ra7 {[%clk 0:00:09]}  g5 {[%clk 0:00:09]} 37. Kf2 {[%clk 0:00:10]}  Nc5 {[%clk 0:00:05]} 38. Rc7 {[%clk 0:00:09]}  Nd7 {[%clk 0:00:05]} 39. g3 {[%clk 0:00:07]}  Nf6 {[%clk 0:00:03]} 40. h3 {[%clk 0:00:07]}  e5 {[%clk 0:00:04]} 41. Ke3 {[%clk 0:00:05]}  f4+ {[%clk 0:00:04]} 42. gxf4 {[%clk 0:00:06]}  exf4+ {[%clk 0:00:02]} 43. Kf2 {[%clk 0:00:06]}  Bf5 {[%clk 0:00:03]} 44. Rc5 {[%clk 0:00:05]}  Bg6 {[%clk 0:00:03]} 45. Re5 {[%clk 0:00:05]}  Kf7 {[%clk 0:00:03]} 46. c5 {[%clk 0:00:06]}  Nd7 {[%clk 0:00:04]} 47. Rd5 {[%clk 0:00:05]}  Ke7 {[%clk 0:00:04]} 48. c6 {[%clk 0:00:05]}  Nf6 {[%clk 0:00:04]} 49. Rxd8 {[%clk 0:00:03]}  Kxd8 {[%clk 0:00:05]} 50. Nc4 {[%clk 0:00:03]}  Kc7 {[%clk 0:00:05]} 51. Ne5 {[%clk 0:00:04]}  Bf5 {[%clk 0:00:05]} 52. Bxd3 {[%clk 0:00:04]}  Bxh3 {[%clk 0:00:06]} 53. Nf7 {[%clk 0:00:04]}  Be6 {[%clk 0:00:05]} 54. Nxh6 {[%clk 0:00:04]}  Bd5 {[%clk 0:00:06]} 55. Nf5 {[%clk 0:00:03]}  Kxc6 {[%clk 0:00:06]} 56. Ne7+ {[%clk 0:00:03]}  Kd6 {[%clk 0:00:06]} 57. Nxd5 {[%clk 0:00:02]}  Kxd5 {[%clk 0:00:07]} 58. Bf5 {[%clk 0:00:02]}  Ke5 {[%clk 0:00:07]} 59. Bh3 {[%clk 0:00:02]}  Kd4 {[%clk 0:00:08]} 60. Ke2 {[%clk 0:00:03]}  Nd5 {[%clk 0:00:08]} 61. Bf5 {[%clk 0:00:03]}  Nc3+ {[%clk 0:00:08]} 62. Kf2 {[%clk 0:00:04]}  Nd1+ {[%clk 0:00:08]} 63. Ke2 {[%clk 0:00:04]}  Ne3 {[%clk 0:00:09]} 64. Bh3 {[%clk 0:00:04]}  Kc3 {[%clk 0:00:09]} 65. Be6 {[%clk 0:00:04]}  Nc2 {[%clk 0:00:10]} 66. Bh3 {[%clk 0:00:04]}  Nd4+ {[%clk 0:00:11]} 67. Kf2 {[%clk 0:00:04]}  Kd2 {[%clk 0:00:11]} 68. Bd7 {[%clk 0:00:04]}  Nc2 {[%clk 0:00:12]} 69. Bg4 {[%clk 0:00:05]}  Ne1 {[%clk 0:00:12]} 70. Bf5 {[%clk 0:00:04]}  Nd3+ {[%clk 0:00:13]} 71. Kg2 {[%clk 0:00:02]}  Ke2 {[%clk 0:00:13]} 72. Be4 {[%clk 0:00:02]}  Ke3 {[%clk 0:00:12]} 73. Bd5 {[%clk 0:00:01]}  Kd4 {[%clk 0:00:11]} 74. Be4 {[%clk 0:00:01]}  Ke3 {[%clk 0:00:09]} 0-1


[Site "https://www.chess.com"]

[Event "Titled Tuesday Blitz June 07 Late 2022"]
[White "Romanchuk, Viktor"]
[Black "Bringas Gomez, Artai"]
[WhiteFideId "14109271"]
[BlackFideId "24534064"]
[WhiteElo "2242"]
[BlackElo "1988"]
[Result "1/2-1/2"]
[Round "07"]
[TimeControl "180+1"]
[Date "2022.06.07"]
[WhiteClock "0:00:08"]
[BlackClock "0:00:16"]

1. d4 {[%clk 0:03:00]}  Nf6 {[%clk 0:02:59]} 2. c4 {[%clk 0:03:00]}  e6 {[%clk 0:03:00]} 3. Nc3 {[%clk 0:02:58]}  Bb4 {[%clk 0:03:00]} 4. e3 {[%clk 0:02:58]}  b6 {[%clk 0:02:57]} 5. Ne2 {[%clk 0:02:58]}  c5 {[%clk 0:02:49]} 6. a3 {[%clk 0:02:57]}  Ba5 {[%clk 0:02:49]} 7. Rb1 {[%clk 0:02:56]}  Na6 {[%clk 0:02:48]} 8. g3 {[%clk 0:02:56]}  Bb7 {[%clk 0:02:45]} 9. d5 {[%clk 0:02:56]}  b5 {[%clk 0:02:38]} 10. Bg2 {[%clk 0:02:56]}  bxc4 {[%clk 0:02:25]} 11. O-O {[%clk 0:02:56]}  O-O {[%clk 0:02:22]} 12. e4 {[%clk 0:02:56]}  exd5 {[%clk 0:02:22]} 13. e5 {[%clk 0:02:55]}  Ng4 {[%clk 0:02:21]} 14. Nxd5 {[%clk 0:02:51]}  Nxe5 {[%clk 0:02:17]} 15. Ne7+ {[%clk 0:01:54]}  Qxe7 {[%clk 0:02:16]} 16. Bxb7 {[%clk 0:01:55]}  Rab8 {[%clk 0:02:17]} 17. Bg2 {[%clk 0:01:38]}  Rb3 {[%clk 0:02:10]} 18. Nf4 {[%clk 0:01:36]}  Nd3 {[%clk 0:02:08]} 19. Nxd3 {[%clk 0:01:30]}  Rxd3 {[%clk 0:02:09]} 20. Qa4 {[%clk 0:01:30]}  Qd8 {[%clk 0:02:06]} 21. Qxc4 {[%clk 0:01:28]}  Rd6 {[%clk 0:02:04]} 22. Bf4 {[%clk 0:00:57]}  Rb6 {[%clk 0:02:04]} 23. Rfd1 {[%clk 0:00:58]}  d6 {[%clk 0:01:56]} 24. Rd3 {[%clk 0:00:51]}  Nc7 {[%clk 0:01:49]} 25. b4 {[%clk 0:00:50]}  Ne6 {[%clk 0:01:28]} 26. Rdb3 {[%clk 0:00:43]}  cxb4 {[%clk 0:01:09]} 27. axb4 {[%clk 0:00:40]}  d5 {[%clk 0:01:10]} 28. Qxd5 {[%clk 0:00:18]}  Nxf4 {[%clk 0:00:56]} 29. gxf4 {[%clk 0:00:19]}  Qxd5 {[%clk 0:00:54]} 30. Bxd5 {[%clk 0:00:20]}  Rg6+ {[%clk 0:00:55]} 31. Kf1 {[%clk 0:00:19]}  Bb6 {[%clk 0:00:56]} 32. b5 {[%clk 0:00:17]}  Rh6 {[%clk 0:00:55]} 33. h3 {[%clk 0:00:17]}  Rf6 {[%clk 0:00:54]} 34. Rf3 {[%clk 0:00:15]}  g6 {[%clk 0:00:55]} 35. f5 {[%clk 0:00:15]}  Kg7 {[%clk 0:00:53]} 36. fxg6 {[%clk 0:00:14]}  hxg6 {[%clk 0:00:54]} 37. Rxf6 {[%clk 0:00:14]}  Kxf6 {[%clk 0:00:55]} 38. Bc6 {[%clk 0:00:14]}  Rd8 {[%clk 0:00:54]} 39. Rb3 {[%clk 0:00:14]}  Rd1+ {[%clk 0:00:51]} 40. Kg2 {[%clk 0:00:14]}  Rd6 {[%clk 0:00:49]} 41. Rf3+ {[%clk 0:00:15]}  Kg7 {[%clk 0:00:49]} 42. Be4 {[%clk 0:00:14]}  f5 {[%clk 0:00:49]} 43. Bd3 {[%clk 0:00:13]}  Kf6 {[%clk 0:00:49]} 44. Be2 {[%clk 0:00:13]}  Rd4 {[%clk 0:00:48]} 45. Rd3 {[%clk 0:00:13]}  Rf4 {[%clk 0:00:43]} 46. Rf3 {[%clk 0:00:13]}  Rb4 {[%clk 0:00:40]} 47. Rc3 {[%clk 0:00:13]}  Kg5 {[%clk 0:00:38]} 48. Rg3+ {[%clk 0:00:13]}  Kh6 {[%clk 0:00:28]} 49. Rc3 {[%clk 0:00:12]}  Re4 {[%clk 0:00:26]} 50. Kf1 {[%clk 0:00:12]}  Rf4 {[%clk 0:00:24]} 51. Rf3 {[%clk 0:00:12]}  Rh4 {[%clk 0:00:22]} 52. Rg3 {[%clk 0:00:11]}  g5 {[%clk 0:00:19]} 53. Kg2 {[%clk 0:00:11]}  Rf4 {[%clk 0:00:19]} 54. Rf3 {[%clk 0:00:11]}  Rxf3 {[%clk 0:00:19]} 55. Kxf3 {[%clk 0:00:11]}  Kg6 {[%clk 0:00:19]} 56. Bd3 {[%clk 0:00:11]}  Kf6 {[%clk 0:00:19]} 57. Be2 {[%clk 0:00:11]}  Ke5 {[%clk 0:00:20]} 58. Bd3 {[%clk 0:00:12]}  Bd8 {[%clk 0:00:20]} 59. Be2 {[%clk 0:00:12]}  Kd4 {[%clk 0:00:20]} 60. Bd1 {[%clk 0:00:11]}  Kc3 {[%clk 0:00:19]} 61. Be2 {[%clk 0:00:10]}  Kd4 {[%clk 0:00:19]} 62. Bd1 {[%clk 0:00:10]}  Ke5 {[%clk 0:00:18]} 63. Bc2 {[%clk 0:00:10]}  Ba5 {[%clk 0:00:18]} 64. Bd3 {[%clk 0:00:10]}  Be1 {[%clk 0:00:19]} 65. Bc2 {[%clk 0:00:10]}  Bd2 {[%clk 0:00:19]} 66. Bd3 {[%clk 0:00:10]}  Bf4 {[%clk 0:00:20]} 67. Bc2 {[%clk 0:00:10]}  Kf6 {[%clk 0:00:19]} 68. h4 {[%clk 0:00:09]}  Bc1 {[%clk 0:00:16]} 69. hxg5+ {[%clk 0:00:09]}  Kxg5 {[%clk 0:00:17]} 70. Bd3 {[%clk 0:00:09]}  Ba3 {[%clk 0:00:16]} 71. Bc2 {[%clk 0:00:08]}  Bc5 {[%clk 0:00:17]} 72. Bd3 {[%clk 0:00:08]}  Bb6 {[%clk 0:00:16]} 73. Bc2 {[%clk 0:00:08]}  Kf6 {[%clk 0:00:17]} 74. Bd3 {[%clk 0:00:08]}  Ke5 {[%clk 0:00:16]} 1/2-1/2


[Site "https://www.chess.com"]

[Event "Titled Tuesday Blitz June 07 Late 2022"]
[White "Rosen, Eric"]
[Black "Chigaev, Maksim"]
[WhiteFideId "2032562"]
[BlackFideId "4108116"]
[WhiteElo "2362"]
[BlackElo "2457"]
[Result "1-0"]
[Round "07"]
[TimeControl "180+1"]
[Date "2022.06.07"]
[WhiteClock "0:00:06"]
[BlackClock "0:00:04"]

1. d4 {[%clk 0:03:00]}  d5 {[%clk 0:02:53]} 2. Bf4 {[%clk 0:02:58]}  Nf6 {[%clk 0:02:52]} 3. e3 {[%clk 0:02:58]}  c5 {[%clk 0:02:52]} 4. Nf3 {[%clk 0:02:58]}  Nc6 {[%clk 0:02:52]} 5. Nbd2 {[%clk 0:02:57]}  e6 {[%clk 0:02:49]} 6. c3 {[%clk 0:02:56]}  Be7 {[%clk 0:02:50]} 7. Bd3 {[%clk 0:02:52]}  Nh5 {[%clk 0:02:49]} 8. Bg3 {[%clk 0:02:49]}  Nxg3 {[%clk 0:02:44]} 9. hxg3 {[%clk 0:02:49]}  h6 {[%clk 0:02:44]} 10. Qe2 {[%clk 0:02:43]}  Qc7 {[%clk 0:02:33]} 11. g4 {[%clk 0:02:38]}  e5 {[%clk 0:02:27]} 12. Nxe5 {[%clk 0:02:25]}  Nxe5 {[%clk 0:02:26]} 13. dxe5 {[%clk 0:02:26]}  Qxe5 {[%clk 0:02:26]} 14. Bb5+ {[%clk 0:02:26]}  Kf8 {[%clk 0:02:27]} 15. f4 {[%clk 0:02:13]}  Qe6 {[%clk 0:02:10]} 16. g5 {[%clk 0:02:09]}  c4 {[%clk 0:02:04]} 17. Nf3 {[%clk 0:02:02]}  Bc5 {[%clk 0:01:56]} 18. Nd4 {[%clk 0:01:52]}  Bxd4 {[%clk 0:01:42]} 19. exd4 {[%clk 0:01:50]}  Qxe2+ {[%clk 0:01:03]} 20. Kxe2 {[%clk 0:01:51]}  Bf5 {[%clk 0:01:04]} 21. Kf2 {[%clk 0:01:36]}  a6 {[%clk 0:00:56]} 22. Ba4 {[%clk 0:01:36]}  b5 {[%clk 0:00:41]} 23. Bd1 {[%clk 0:01:36]}  Be4 {[%clk 0:00:27]} 24. Bf3 {[%clk 0:01:23]}  Bxf3 {[%clk 0:00:28]} 25. Kxf3 {[%clk 0:01:23]}  a5 {[%clk 0:00:25]} 26. Rae1 {[%clk 0:01:20]}  Rd8 {[%clk 0:00:13]} 27. Re5 {[%clk 0:01:18]}  b4 {[%clk 0:00:10]} 28. Rh3 {[%clk 0:00:46]}  h5 {[%clk 0:00:09]} 29. f5 {[%clk 0:00:41]}  f6 {[%clk 0:00:09]} 30. gxf6 {[%clk 0:00:38]}  gxf6 {[%clk 0:00:10]} 31. Re6 {[%clk 0:00:39]}  Kf7 {[%clk 0:00:10]} 32. Rg3 {[%clk 0:00:37]}  Rhg8 {[%clk 0:00:05]} 33. Rxg8 {[%clk 0:00:37]}  Rxg8 {[%clk 0:00:04]} 34. Rd6 {[%clk 0:00:37]}  a4 {[%clk 0:00:03]} 35. cxb4 {[%clk 0:00:35]}  a3 {[%clk 0:00:03]} 36. bxa3 {[%clk 0:00:33]}  Ra8 {[%clk 0:00:03]} 37. Rxd5 {[%clk 0:00:27]}  Rxa3+ {[%clk 0:00:04]} 38. Ke4 {[%clk 0:00:23]}  Rxa2 {[%clk 0:00:04]} 39. Rc5 {[%clk 0:00:24]}  Rxg2 {[%clk 0:00:04]} 40. Rxc4 {[%clk 0:00:24]}  h4 {[%clk 0:00:05]} 41. Rc3 {[%clk 0:00:24]}  Rb2 {[%clk 0:00:04]} 42. Rh3 {[%clk 0:00:20]}  Rxb4 {[%clk 0:00:04]} 43. Rxh4 {[%clk 0:00:21]}  Ke7 {[%clk 0:00:05]} 44. Kd5 {[%clk 0:00:19]}  Rb5+ {[%clk 0:00:05]} 45. Ke4 {[%clk 0:00:19]}  Rb1 {[%clk 0:00:06]} 46. Rh7+ {[%clk 0:00:19]}  Kf8 {[%clk 0:00:06]} 47. Kd5 {[%clk 0:00:18]}  Re1 {[%clk 0:00:07]} 48. Ra7 {[%clk 0:00:17]}  Ke8 {[%clk 0:00:06]} 49. Kd6 {[%clk 0:00:17]}  Re4 {[%clk 0:00:05]} 50. Ra8+ {[%clk 0:00:15]}  Kf7 {[%clk 0:00:05]} 51. Ra7+ {[%clk 0:00:16]}  Ke8 {[%clk 0:00:06]} 52. Kd5 {[%clk 0:00:16]}  Re1 {[%clk 0:00:05]} 53. Rh7 {[%clk 0:00:17]}  Kf8 {[%clk 0:00:05]} 54. Rh6 {[%clk 0:00:17]}  Kg7 {[%clk 0:00:05]} 55. Rh3 {[%clk 0:00:16]}  Rf1 {[%clk 0:00:04]} 56. Ke6 {[%clk 0:00:16]}  Re1+ {[%clk 0:00:04]} 57. Kd6 {[%clk 0:00:17]}  Rf1 {[%clk 0:00:03]} 58. Rh5 {[%clk 0:00:17]}  Re1 {[%clk 0:00:03]} 59. d5 {[%clk 0:00:11]}  Kf7 {[%clk 0:00:03]} 60. Rh7+ {[%clk 0:00:11]}  Kg8 {[%clk 0:00:04]} 61. Rh6 {[%clk 0:00:11]}  Kg7 {[%clk 0:00:04]} 62. Rh3 {[%clk 0:00:09]}  Re5 {[%clk 0:00:03]} 63. Rf3 {[%clk 0:00:08]}  Kf7 {[%clk 0:00:03]} 64. Kc6 {[%clk 0:00:07]}  Re1 {[%clk 0:00:03]} 65. Kd7 {[%clk 0:00:06]}  Rc1 {[%clk 0:00:03]} 66. d6 {[%clk 0:00:06]}  Ra1 {[%clk 0:00:03]} 67. Rc3 {[%clk 0:00:06]}  Ra5 {[%clk 0:00:02]} 68. Kd8 {[%clk 0:00:03]}  Ra8+ {[%clk 0:00:02]} 69. Kc7 {[%clk 0:00:02]}  Ra7+ {[%clk 0:00:02]} 70. Kc8 {[%clk 0:00:03]}  Ra5 {[%clk 0:00:03]} 71. d7 {[%clk 0:00:03]}  Rxf5 {[%clk 0:00:03]} 72. d8=Q {[%clk 0:00:03]}  Re5 {[%clk 0:00:03]} 73. Qd7+ {[%clk 0:00:03]}  Kg6 {[%clk 0:00:03]} 74. Qg4+ {[%clk 0:00:04]}  Rg5 {[%clk 0:00:04]} 75. Qe4+ {[%clk 0:00:04]}  f5 {[%clk 0:00:03]} 76. Rc6+ {[%clk 0:00:04]}  Kh5 {[%clk 0:00:04]} 77. Qf3+ {[%clk 0:00:04]}  Kh4 {[%clk 0:00:05]} 78. Qh1+ {[%clk 0:00:04]}  Kg3 {[%clk 0:00:03]} 79. Rc3+ {[%clk 0:00:04]}  Kg4 {[%clk 0:00:03]} 80. Qg1+ {[%clk 0:00:05]}  Kh5 {[%clk 0:00:04]} 81. Rh3+ {[%clk 0:00:05]}  Kg6 {[%clk 0:00:04]} 82. Rg3 {[%clk 0:00:06]}  Rg4 {[%clk 0:00:04]} 83. Rxg4+ {[%clk 0:00:06]} 1-0


[Site "https://www.chess.com"]

[Event "Titled Tuesday Blitz June 07 Late 2022"]
[White "Rustemov, Alexander"]
[Black "Bayo Milagro, Alvaro"]
[WhiteFideId "4119002"]
[BlackFideId "22275240"]
[WhiteElo "2769"]
[BlackElo "2270"]
[Result "1-0"]
[Round "07"]
[TimeControl "180+1"]
[Date "2022.06.07"]
[WhiteClock "0:00:24"]
[BlackClock "0:00:17"]

1. d4 {[%clk 0:03:00]}  Nf6 {[%clk 0:02:59]} 2. c4 {[%clk 0:03:01]}  g6 {[%clk 0:02:59]} 3. Nf3 {[%clk 0:03:01]}  Bg7 {[%clk 0:02:59]} 4. g3 {[%clk 0:03:02]}  O-O {[%clk 0:02:59]} 5. Bg2 {[%clk 0:03:03]}  d6 {[%clk 0:03:00]} 6. Nc3 {[%clk 0:03:03]}  c6 {[%clk 0:03:00]} 7. O-O {[%clk 0:03:04]}  Qb6 {[%clk 0:03:01]} 8. h3 {[%clk 0:03:02]}  Qa6 {[%clk 0:03:01]} 9. Nd2 {[%clk 0:03:03]}  Nbd7 {[%clk 0:02:58]} 10. b3 {[%clk 0:02:54]}  e5 {[%clk 0:02:58]} 11. d5 {[%clk 0:02:52]}  cxd5 {[%clk 0:02:54]} 12. cxd5 {[%clk 0:02:47]}  Nc5 {[%clk 0:02:32]} 13. a4 {[%clk 0:02:42]}  Qa5 {[%clk 0:02:07]} 14. Nb5 {[%clk 0:02:28]}  Qd8 {[%clk 0:02:06]} 15. Nc4 {[%clk 0:02:27]}  Ne8 {[%clk 0:02:02]} 16. Ba3 {[%clk 0:02:26]}  b6 {[%clk 0:01:58]} 17. b4 {[%clk 0:02:22]}  Na6 {[%clk 0:01:54]} 18. Rc1 {[%clk 0:02:09]}  Bb7 {[%clk 0:01:31]} 19. e4 {[%clk 0:02:05]}  Bc8 {[%clk 0:01:13]} 20. Qe2 {[%clk 0:01:57]}  f5 {[%clk 0:01:09]} 21. Rc3 {[%clk 0:01:56]}  f4 {[%clk 0:01:07]} 22. Rfc1 {[%clk 0:01:52]}  Rf6 {[%clk 0:01:02]} 23. g4 {[%clk 0:01:45]}  Bd7 {[%clk 0:00:58]} 24. Nd2 {[%clk 0:01:41]}  g5 {[%clk 0:00:49]} 25. Nxd6 {[%clk 0:01:39]}  Nxd6 {[%clk 0:00:45]} 26. Qxa6 {[%clk 0:01:38]}  b5 {[%clk 0:00:44]} 27. Rc7 {[%clk 0:01:05]}  Ne8 {[%clk 0:00:33]} 28. Rxd7 {[%clk 0:00:59]}  Qxd7 {[%clk 0:00:22]} 29. Qxb5 {[%clk 0:00:59]}  Qxb5 {[%clk 0:00:22]} 30. axb5 {[%clk 0:01:00]}  Rb8 {[%clk 0:00:21]} 31. Nf3 {[%clk 0:00:57]}  Rg6 {[%clk 0:00:17]} 32. Bf1 {[%clk 0:00:55]}  Nd6 {[%clk 0:00:18]} 33. Rc7 {[%clk 0:00:47]}  Nxb5 {[%clk 0:00:17]} 34. Bxb5 {[%clk 0:00:47]}  Rxb5 {[%clk 0:00:18]} 35. Rxa7 {[%clk 0:00:47]}  Bf8 {[%clk 0:00:18]} 36. Nxe5 {[%clk 0:00:45]}  Rg7 {[%clk 0:00:18]} 37. Ra8 {[%clk 0:00:44]}  Re7 {[%clk 0:00:19]} 38. Nc6 {[%clk 0:00:27]}  Rxe4 {[%clk 0:00:18]} 39. d6 {[%clk 0:00:27]}  Rd5 {[%clk 0:00:17]} 40. Ne7+ {[%clk 0:00:24]} 1-0


[Site "https://www.chess.com"]

[Event "Titled Tuesday Blitz June 07 Late 2022"]
[White "Rychagov, Andrey"]
[Black "Hosseinzadeh, Nima"]
[WhiteFideId "4119932"]
[BlackFideId "12505323"]
[WhiteElo "2460"]
[BlackElo "2066"]
[Result "1-0"]
[Round "07"]
[TimeControl "180+1"]
[Date "2022.06.07"]
[WhiteClock "0:00:05"]
[BlackClock "0:00:02"]

1. d4 {[%clk 0:02:55]}  Nf6 {[%clk 0:03:00]} 2. c4 {[%clk 0:02:55]}  e6 {[%clk 0:03:00]} 3. Nf3 {[%clk 0:02:55]}  b6 {[%clk 0:03:00]} 4. a3 {[%clk 0:02:54]}  Bb7 {[%clk 0:02:59]} 5. Nc3 {[%clk 0:02:54]}  d5 {[%clk 0:02:59]} 6. Bg5 {[%clk 0:02:54]}  Nbd7 {[%clk 0:02:52]} 7. cxd5 {[%clk 0:02:49]}  exd5 {[%clk 0:02:53]} 8. e3 {[%clk 0:02:49]}  Be7 {[%clk 0:02:53]} 9. Bd3 {[%clk 0:02:49]}  O-O {[%clk 0:02:52]} 10. O-O {[%clk 0:02:48]}  h6 {[%clk 0:02:46]} 11. Bf4 {[%clk 0:02:46]}  Ne4 {[%clk 0:02:43]} 12. Rc1 {[%clk 0:02:46]}  a6 {[%clk 0:02:40]} 13. Bb1 {[%clk 0:02:46]}  Re8 {[%clk 0:02:24]} 14. Qd3 {[%clk 0:02:44]}  c5 {[%clk 0:02:16]} 15. Ne5 {[%clk 0:02:39]}  Nxe5 {[%clk 0:02:12]} 16. Bxe5 {[%clk 0:02:38]}  c4 {[%clk 0:02:08]} 17. Qc2 {[%clk 0:02:38]}  b5 {[%clk 0:01:47]} 18. f3 {[%clk 0:02:29]}  Nf6 {[%clk 0:01:46]} 19. Bxf6 {[%clk 0:02:12]}  Bxf6 {[%clk 0:01:47]} 20. Qh7+ {[%clk 0:02:11]}  Kf8 {[%clk 0:01:48]} 21. Rfe1 {[%clk 0:02:11]}  Qb6 {[%clk 0:01:32]} 22. Kh1 {[%clk 0:02:05]}  Bg5 {[%clk 0:01:12]} 23. f4 {[%clk 0:01:59]}  Bh4 {[%clk 0:01:04]} 24. g3 {[%clk 0:01:54]}  Bf6 {[%clk 0:01:04]} 25. e4 {[%clk 0:01:49]}  Bxd4 {[%clk 0:00:58]} 26. Nxd5 {[%clk 0:01:29]}  Bxd5 {[%clk 0:00:45]} 27. Qh8+ {[%clk 0:01:25]}  Ke7 {[%clk 0:00:23]} 28. exd5+ {[%clk 0:01:25]}  Be3 {[%clk 0:00:08]} 29. Qxg7 {[%clk 0:01:24]}  Kd8 {[%clk 0:00:06]} 30. Qxf7 {[%clk 0:01:06]}  Ra7 {[%clk 0:00:05]} 31. Qf5 {[%clk 0:01:05]}  Bxc1 {[%clk 0:00:04]} 32. Rxc1 {[%clk 0:01:02]}  Rae7 {[%clk 0:00:03]} 33. Kg2 {[%clk 0:00:57]}  Re2+ {[%clk 0:00:04]} 34. Kh3 {[%clk 0:00:57]}  Qf2 {[%clk 0:00:03]} 35. Qf6+ {[%clk 0:00:49]}  Kc7 {[%clk 0:00:03]} 36. Qc6+ {[%clk 0:00:30]}  Kb8 {[%clk 0:00:04]} 37. Bg6 {[%clk 0:00:20]}  Qxh2+ {[%clk 0:00:03]} 38. Kg4 {[%clk 0:00:20]}  Rg8 {[%clk 0:00:03]} 39. Qb6+ {[%clk 0:00:18]}  Ka8 {[%clk 0:00:03]} 40. Qxa6+ {[%clk 0:00:18]}  Kb8 {[%clk 0:00:03]} 41. Qxb5+ {[%clk 0:00:19]}  Ka8 {[%clk 0:00:04]} 42. Qa6+ {[%clk 0:00:18]}  Kb8 {[%clk 0:00:04]} 43. f5 {[%clk 0:00:15]}  h5+ {[%clk 0:00:03]} 44. Kf4 {[%clk 0:00:06]}  Qf2+ {[%clk 0:00:03]} 45. Kg5 {[%clk 0:00:06]}  Qxg3+ {[%clk 0:00:03]} 46. Kh6 {[%clk 0:00:06]}  Qf4+ {[%clk 0:00:02]} 47. Kh7 {[%clk 0:00:06]}  Ree8 {[%clk 0:00:02]} 48. Qb6+ {[%clk 0:00:05]}  Ka8 {[%clk 0:00:02]} 49. Qc6+ {[%clk 0:00:05]}  Kb8 {[%clk 0:00:02]} 50. Qb6+ {[%clk 0:00:05]}  Ka8 {[%clk 0:00:02]} 51. Qa5+ {[%clk 0:00:05]}  Kb8 {[%clk 0:00:02]} 52. Qb4+ {[%clk 0:00:06]}  Ka8 {[%clk 0:00:02]} 53. Qa4+ {[%clk 0:00:06]}  Kb8 {[%clk 0:00:02]} 54. Qxc4 {[%clk 0:00:05]} 1-0


[Site "https://www.chess.com"]

[Event "Titled Tuesday Blitz June 07 Late 2022"]
[White "Shimanov, Aleksandr"]
[Black "Bortnyk, Olexandr"]
[WhiteFideId "4198603"]
[BlackFideId "14120828"]
[WhiteElo "2605"]
[BlackElo "2723"]
[Result "1-0"]
[Round "07"]
[TimeControl "180+1"]
[Date "2022.06.07"]
[WhiteClock "0:00:56"]
[BlackClock "0:00:02"]

1. b3 {[%clk 0:03:00]}  e5 {[%clk 0:02:53]} 2. Bb2 {[%clk 0:03:00]}  Nc6 {[%clk 0:02:54]} 3. c4 {[%clk 0:03:01]}  a6 {[%clk 0:02:45]} 4. e3 {[%clk 0:02:53]}  Nf6 {[%clk 0:02:39]} 5. Nf3 {[%clk 0:02:53]}  Bd6 {[%clk 0:02:34]} 6. Nc3 {[%clk 0:02:19]}  Qe7 {[%clk 0:02:28]} 7. d3 {[%clk 0:02:17]}  Ba3 {[%clk 0:02:07]} 8. Bxa3 {[%clk 0:01:59]}  Qxa3 {[%clk 0:02:08]} 9. Be2 {[%clk 0:01:59]}  d6 {[%clk 0:01:54]} 10. O-O {[%clk 0:01:59]}  O-O {[%clk 0:01:54]} 11. Nd2 {[%clk 0:01:53]}  Bf5 {[%clk 0:01:48]} 12. Nd5 {[%clk 0:01:47]}  Nxd5 {[%clk 0:01:30]} 13. cxd5 {[%clk 0:01:48]}  Ne7 {[%clk 0:01:31]} 14. e4 {[%clk 0:01:26]}  Bd7 {[%clk 0:01:30]} 15. Rc1 {[%clk 0:01:25]}  Rfc8 {[%clk 0:01:08]} 16. Nc4 {[%clk 0:01:24]}  Qb4 {[%clk 0:01:08]} 17. a3 {[%clk 0:01:23]}  Qc5 {[%clk 0:00:34]} 18. Nxe5 {[%clk 0:01:20]}  Qxc1 {[%clk 0:00:30]} 19. Qxc1 {[%clk 0:01:20]}  dxe5 {[%clk 0:00:31]} 20. Qb2 {[%clk 0:01:19]}  f6 {[%clk 0:00:26]} 21. d4 {[%clk 0:01:19]}  exd4 {[%clk 0:00:21]} 22. Qxd4 {[%clk 0:01:20]}  Ng6 {[%clk 0:00:19]} 23. f4 {[%clk 0:01:19]}  c5 {[%clk 0:00:18]} 24. Qc3 {[%clk 0:01:14]}  Re8 {[%clk 0:00:19]} 25. Bd3 {[%clk 0:01:13]}  Rac8 {[%clk 0:00:18]} 26. e5 {[%clk 0:01:13]}  fxe5 {[%clk 0:00:11]} 27. Bxg6 {[%clk 0:01:13]}  hxg6 {[%clk 0:00:11]} 28. fxe5 {[%clk 0:01:13]}  b5 {[%clk 0:00:07]} 29. e6 {[%clk 0:01:12]}  Bxe6 {[%clk 0:00:07]} 30. dxe6 {[%clk 0:01:13]}  Rxe6 {[%clk 0:00:08]} 31. Re1 {[%clk 0:01:11]}  Rd6 {[%clk 0:00:07]} 32. Qe5 {[%clk 0:01:09]}  Rcd8 {[%clk 0:00:07]} 33. Qxc5 {[%clk 0:01:09]}  Rd2 {[%clk 0:00:07]} 34. Qc6 {[%clk 0:01:06]}  R8d6 {[%clk 0:00:06]} 35. Qa8+ {[%clk 0:01:01]}  Kh7 {[%clk 0:00:07]} 36. h3 {[%clk 0:01:01]}  Rd8 {[%clk 0:00:03]} 37. Qxa6 {[%clk 0:00:59]}  Rb2 {[%clk 0:00:02]} 38. Qxb5 {[%clk 0:00:58]}  Rdd2 {[%clk 0:00:03]} 39. Qb7 {[%clk 0:00:58]}  Ra2 {[%clk 0:00:03]} 40. a4 {[%clk 0:00:59]}  Rdb2 {[%clk 0:00:03]} 41. Re7 {[%clk 0:00:57]}  Kh6 {[%clk 0:00:02]} 42. Rxg7 {[%clk 0:00:56]} 1-0


[Site "https://www.chess.com"]